fUST/lending_fUST_20240813
["ID","MTS","AMOUNT","RATE_DAILY","PERIOD"]
[334741932,1723528243935,-500.0,0.00013698,2]
[334741933,1723528243945,-502.02979669,0.00013698,2]
[334741934,1723528243954,-500.0,0.00013698,2]
[334741935,1723528243963,-500.0,0.00013698,2]
[334741936,1723528243973,-651.862578,0.00013698,2]
[334741937,1723528243982,-651.862578,0.00013698,2]
[334741938,1723528243991,-651.862578,0.00013698,2]
[334741939,1723528244001,-651.862578,0.00013698,2]
[334741940,1723528244011,-651.862578,0.00013698,2]
[334741941,1723528244019,-500.0,0.00013698,2]
[334741942,1723528244029,-651.862578,0.00013698,2]
[334741943,1723528244038,-651.862578,0.00013698,2]
[334741944,1723528244047,-651.862578,0.00013698,2]
[334741945,1723528244057,-500.0,0.00013698,2]
[334741946,1723528244066,-651.862578,0.00013698,2]
[334741947,1723528244075,-651.862578,0.00013698,2]
[334741948,1723528244084,-500.0,0.00013698,2]
[334741949,1723528244093,-500.0,0.00013698,2]
[334741950,1723528244106,-651.862578,0.00013698,2]
[334741951,1723528244115,-651.862578,0.00013698,2]
[334741952,1723528244124,-651.862578,0.00013698,2]
[334741953,1723528244134,-651.862586,0.00013698,2]
[334741954,1723528244143,-500.0,0.00013698,2]
[334741955,1723528244152,-504.02452338,0.00013698,2]
[334741956,1723528244161,-503.69358324,0.00013698,2]
[334741957,1723528244170,-501.14588562,0.00013698,2]
[334741958,1723528244180,-500.0,0.00013698,2]
[334741959,1723528244189,-151.0,0.00013698,2]
[334741960,1723528244199,-500.0,0.00013698,2]
[334741961,1723528244209,-151.0,0.00013698,2]
[334741962,1723528244218,-501.72907514,0.00013698,2]
[334741963,1723528244228,-285.529318,0.00013698,2]
[334741964,1723528244237,-502.18574441,0.00013698,2]
[334741965,1723528244248,-501.22635763,0.00013698,2]
[334741966,1723528244257,-1072.406248,0.00013698,2]
[334741967,1723528244277,-1072.406248,0.00013698,2]
[334741968,1723528244288,-500.0,0.00013698,2]
[334741969,1723528244298,-1072.406248,0.00013698,2]
[334741970,1723528244308,-500.0,0.00013698,2]
[334741971,1723528244317,-1072.406248,0.00013698,2]
[334741972,1723528244327,-1072.406248,0.00013698,2]
[334741973,1723528244337,-1072.406248,0.00013698,2]
[334741974,1723528244347,-1072.406248,0.00013698,2]
[334741975,1723528244357,-1072.406248,0.00013698,2]
[334741976,1723528244366,-1072.406248,0.00013698,2]
[334741977,1723528244376,-588.38,0.00013698,2]
[334741978,1723528244386,-500.0,0.00013698,2]
[334741979,1723528244396,-1072.406248,0.00013698,2]
[334741980,1723528244405,-151.0,0.00013698,2]
[334741981,1723528244415,-1072.406248,0.00013698,2]
[334741982,1723528244425,-151.0,0.00013698,2]
[334741983,1723528244434,-1072.406248,0.00013698,2]
[334741984,1723528244445,-169.134639,0.00013698,2]
[334741985,1723528244454,-1072.406248,0.00013698,2]
[334741986,1723528244464,-1072.406248,0.00013698,2]
[334741987,1723528244474,-1072.406248,0.00013698,2]
[334741988,1723528244484,-1072.406248,0.00013698,2]
[334741989,1723528244495,-1072.406248,0.00013698,2]
[334741990,1723528244504,-1072.40624987,0.00013698,2]
[334741991,1723528244515,-503.59029948,0.00013698,2]
[334741992,1723528244524,-768.16,0.00013698,2]
[334741993,1723528244534,-500.0,0.00013698,2]
[334741994,1723528244544,-503.33157854,0.00013698,2]
[334741995,1723528244555,-507.05239135,0.00013698,2]
[334741996,1723528244564,-525.24,0.00013698,2]
[334741997,1723528244574,-151.0,0.00013698,2]
[334741998,1723528244584,-151.0,0.00013698,2]
[334741999,1723528244593,-151.0,0.00013698,2]
[334742000,1723528244603,-500.0,0.00013698,2]
[334742001,1723528244613,-501.37628776,0.00013698,2]
[334742002,1723528244623,-151.0,0.00013698,2]
[334742003,1723528244632,-151.0,0.00013698,2]
[334742004,1723528244641,-160.556015,0.00013698,2]
[334742005,1723528244651,-500.0,0.00013698,2]
[334742006,1723528244662,-876.74,0.00013698,2]
[334742007,1723528244672,-151.0,0.00013698,2]
[334742008,1723528244681,-151.0,0.00013698,2]
[334742009,1723528244691,-151.0,0.00013698,2]
[334742010,1723528244700,-153.900139,0.00013698,2]
[334742011,1723528244710,-510.28057163,0.00013698,2]
[334742012,1723528244720,-500.0,0.00013698,2]
[334742013,1723528244730,-509.09791838,0.00013698,2]
[334742014,1723528244741,-861.35,0.00013698,2]
[334742015,1723528244751,-500.0,0.00013698,2]
[334742016,1723528244760,-500.80143685,0.00013698,2]
[334742017,1723528244769,-502.05128302,0.00013698,2]
[334742018,1723528244779,-500.0,0.00013698,2]
[334742019,1723528244788,-500.0,0.00013698,2]
[334742020,1723528244797,-500.0,0.00013698,2]
[334742021,1723528244806,-500.0,0.00013698,2]
[334742022,1723528244816,-505.92990802,0.00013698,2]
[334742023,1723528244825,-500.0,0.00013698,2]
[334742024,1723528244835,-506.55540525,0.00013698,2]
[334742025,1723528244845,-692.66,0.00013698,2]
[334742026,1723528244855,-522.904389,0.00013698,2]
[334742027,1723528244865,-522.904389,0.00013698,2]
[334742028,1723528244875,-522.904389,0.00013698,2]
[334742029,1723528244884,-522.904389,0.00013698,2]
[334742030,1723528244894,-522.904389,0.00013698,2]
[334742031,1723528244904,-522.904389,0.00013698,2]
[334742032,1723528244914,-151.0,0.00013698,2]
[334742033,1723528244924,-522.904389,0.00013698,2]
[334742034,1723528244934,-522.904389,0.00013698,2]
[334742035,1723528244943,-151.0,0.00013698,2]
[334742036,1723528244954,-522.904389,0.00013698,2]
[334742037,1723528244963,-151.0,0.00013698,2]
[334742038,1723528244972,-151.0,0.00013698,2]
[334742039,1723528244982,-522.904389,0.00013698,2]
[334742040,1723528244992,-151.0,0.00013698,2]
[334742041,1723528245001,-505.42697462,0.00013698,2]
[334742042,1723528245010,-522.904389,0.00013698,2]
[334742043,1723528245021,-500.0,0.00013698,2]
[334742044,1723528245030,-522.904389,0.00013698,2]
[334742045,1723528245039,-197.923064,0.00013698,2]
[334742046,1723528245049,-507.34804136,0.00013698,2]
[334742047,1723528245058,-522.904389,0.00013698,2]
[334742048,1723528245067,-522.904389,0.00013698,2]
[334742049,1723528245076,-522.904389,0.00013698,2]
[334742050,1723528245086,-522.904389,0.00013698,2]
[334742051,1723528245095,-522.904389,0.00013698,2]
[334742052,1723528245108,-522.904398,0.00013698,2]
[334742053,1723528245121,-500.0,0.00013698,2]
[334742054,1723528245131,-500.0,0.00013698,2]
[334742055,1723528245141,-151.0,0.00013698,2]
[334742056,1723528245150,-151.0,0.00013698,2]
[334742057,1723528245160,-294.510599,0.00013698,2]
[334742058,1723528245170,-503.91316653,0.00013698,2]
[334742059,1723528245180,-1178.89,0.00013698,2]
[334742060,1723528245189,-988.07,0.00013698,2]
[334742061,1723528245199,-500.0,0.00013698,2]
[334742062,1723528245208,-506.65491078,0.00013698,2]
[334742063,1723528245218,-500.0,0.00013698,2]
[334742064,1723528245227,-1131.39,0.00013698,2]
[334742065,1723528245237,-504.65905847,0.00013698,2]
[334742066,1723528245247,-504.97906983,0.00013698,2]
[334742067,1723528245257,-500.0,0.00013698,2]
[334742068,1723528245267,-504.52624612,0.00013698,2]
[334742069,1723528245276,-656.27,0.00013698,2]
[334742070,1723528245289,-450.823019,0.00013698,2]
[334742071,1723528245299,-500.0,0.00013698,2]
[334742072,1723528245310,-450.823019,0.00013698,2]
[334742073,1723528245320,-502.93585482,0.00013698,2]
[334742074,1723528245329,-450.823019,0.00013698,2]
[334742075,1723528245339,-450.823019,0.00013698,2]
[334742076,1723528245348,-1527.982078,0.00013698,2]
[334742078,1723528245358,-1527.982078,0.00013698,2]
[334742080,1723528245367,-1527.982078,0.00013698,2]
[334742082,1723528245377,-918.67,0.00013698,2]
[334742083,1723528245388,-1527.982078,0.00013698,2]
[334742084,1723528245398,-1527.982078,0.00013698,2]
[334742085,1723528245409,-1527.982078,0.00013698,2]
[334742086,1723528245423,-1527.982078,0.00013698,2]
[334742087,1723528245433,-1527.982078,0.00013698,2]
[334742088,1723528245444,-500.0,0.00013698,2]
[334742089,1723528245454,-1527.982078,0.00013698,2]
[334742090,1723528245463,-1527.982078,0.00013698,2]
[334742091,1723528245476,-1527.982078,0.00013698,2]
[334742092,1723528245486,-1527.982078,0.00013698,2]
[334742093,1723528245500,-179.53129533,0.00013698,2]
[334742094,1723528245510,-1527.982078,0.00013698,2]
[334742095,1723528245520,-538.88936647,0.00013698,2]
[334742096,1723528245530,-507.79661399,0.00013698,2]
[334742097,1723528245539,-1527.982078,0.00013698,2]
[334742098,1723528245549,-500.0,0.00013698,2]
[334742099,1723528245560,-1527.982078,0.00013698,2]
[334742100,1723528245570,-1317.03,0.00013698,2]
[334742101,1723528245580,-1527.982078,0.00013698,2]
[334742102,1723528245590,-1527.982078,0.00013698,2]
[334742103,1723528245599,-961.249838,0.00013698,2]
[334742104,1723528245609,-960.13,0.00013698,2]
[334742105,1723528245620,-1527.982076,0.00013698,2]
[334742106,1723528245632,-961.249838,0.00013698,2]
[334742107,1723528245644,-961.249838,0.00013698,2]
[334742108,1723528245653,-961.249838,0.00013698,2]
[334742109,1723528245663,-961.249838,0.00013698,2]
[334742110,1723528245672,-961.249838,0.00013698,2]
[334742111,1723528245682,-961.249838,0.00013698,2]
[334742112,1723528245691,-961.249838,0.00013698,2]
[334742113,1723528245701,-961.249838,0.00013698,2]
[334742114,1723528245711,-961.249838,0.00013698,2]
[334742115,1723528245720,-509.99697858,0.00013698,2]
[334742116,1723528245730,-961.249838,0.00013698,2]
[334742117,1723528245740,-961.249838,0.00013698,2]
[334742118,1723528245751,-256.925293,0.00013698,2]
[334742119,1723528245761,-961.249838,0.00013698,2]
[334742120,1723528245771,-256.925293,0.00013698,2]
[334742121,1723528245781,-961.249838,0.00013698,2]
[334742122,1723528245790,-256.925293,0.00013698,2]
[334742123,1723528245800,-503.19311323,0.00013698,2]
[334742124,1723528245809,-961.249838,0.00013698,2]
[334742125,1723528245819,-256.925293,0.00013698,2]
[334742126,1723528245828,-961.249838,0.00013698,2]
[334742127,1723528245838,-500.0,0.00013698,2]
[334742128,1723528245847,-256.925293,0.00013698,2]
[334742129,1723528245857,-500.0,0.00013698,2]
[334742130,1723528245867,-961.249838,0.00013698,2]
[334742131,1723528245876,-256.925293,0.00013698,2]
[334742132,1723528245885,-500.0,0.00013698,2]
[334742133,1723528245895,-961.249828,0.00013698,2]
[334742134,1723528245905,-256.925293,0.00013698,2]
[334742135,1723528245914,-256.925293,0.00013698,2]
[334742136,1723528245924,-256.925293,0.00013698,2]
[334742137,1723528245933,-256.925293,0.00013698,2]
[334742138,1723528245943,-500.0,0.00013698,2]
[334742139,1723528245952,-256.925293,0.00013698,2]
[334742140,1723528245962,-256.925293,0.00013698,2]
[334742141,1723528245972,-256.925293,0.00013698,2]
[334742142,1723528245982,-504.38347771,0.00013698,2]
[334742143,1723528245992,-256.925293,0.00013698,2]
[334742144,1723528246002,-256.925293,0.00013698,2]
[334742145,1723528246011,-256.925293,0.00013698,2]
[334742146,1723528246022,-500.0,0.00013698,2]
[334742148,1723528246033,-256.925293,0.00013698,2]
[334742150,1723528246043,-5634.47,0.00013698,2]
[334742151,1723528246054,-256.925302,0.00013698,2]
[334742152,1723528246064,-500.0,0.00013698,2]
[334742153,1723528246073,-500.0,0.00013698,2]
[334742154,1723528246083,-500.0,0.00013698,2]
[334742155,1723528246092,-953.949051,0.00013698,2]
[334742156,1723528246106,-953.949051,0.00013698,2]
[334742157,1723528246117,-953.949051,0.00013698,2]
[334742158,1723528246128,-500.0,0.00013698,2]
[334742159,1723528246138,-953.949051,0.00013698,2]
[334742160,1723528246151,-953.949051,0.00013698,2]
[334742161,1723528246162,-953.949051,0.00013698,2]
[334742162,1723528246172,-500.0,0.00013698,2]
[334742163,1723528246185,-953.949051,0.00013698,2]
[334742164,1723528246196,-953.949051,0.00013698,2]
[334742165,1723528246206,-953.949051,0.00013698,2]
[334742166,1723528246216,-500.0,0.00013698,2]
[334742167,1723528246226,-953.949051,0.00013698,2]
[334742168,1723528246236,-500.0,0.00013698,2]
[334742169,1723528246248,-953.949051,0.00013698,2]
[334742170,1723528246259,-953.949051,0.00013698,2]
[334742171,1723528246270,-2786.95,0.00013698,2]
[334742172,1723528246279,-953.949051,0.00013698,2]
[334742173,1723528246288,-953.949051,0.00013698,2]
[334742174,1723528246298,-508.02086793,0.00013698,2]
[334742175,1723528246307,-953.949051,0.00013698,2]
[334742176,1723528246317,-953.949051,0.00013698,2]
[334742177,1723528246326,-953.949051,0.00013698,2]
[334742178,1723528246336,-953.949047,0.00013698,2]
[334742179,1723528246346,-456.58200291,0.00013698,2]
[334742180,1723528246356,-472.37504085,0.00013698,2]
[334742181,1723528246366,-495.25153772,0.00013698,2]
[334742182,1723528246375,-745.94,0.00013698,2]
[334742183,1723528246384,-505.60728801,0.00013698,2]
[334742184,1723528246393,-506.99395456,0.00013698,2]
[334742185,1723528246403,-507.86272351,0.00013698,2]
[334742186,1723528246412,-1275.19,0.00013698,2]
[334742187,1723528246422,-500.0,0.00013698,2]
[334742188,1723528246431,-500.0,0.00013698,2]
[334742189,1723528246441,-500.0,0.00013698,2]
[334742190,1723528246450,-500.0,0.00013698,2]
[334742191,1723528246460,-503.88429814,0.00013698,2]
[334742192,1723528246469,-597.76,0.00013698,2]
[334742193,1723528246478,-1127.54,0.00013698,2]
[334742194,1723528246488,-553.9254321,0.00013698,2]
[334742195,1723528246498,-500.0,0.00013698,2]
[334742196,1723528246507,-500.0,0.00013698,2]
[334742197,1723528246517,-500.0,0.00013698,2]
[334742198,1723528246526,-1054.34,0.00013698,2]
[334742199,1723528246538,-500.0,0.00013698,2]
[334742200,1723528246548,-4063.87,0.00013698,2]
[334742201,1723528246559,-3904.44,0.00013698,2]
[334742202,1723528246569,-540.34874411,0.00013698,2]
[334742203,1723528246579,-500.0,0.00013698,2]
[334742204,1723528246588,-597.51,0.00013698,2]
[334742205,1723528246597,-503.56450761,0.00013698,2]
[334742206,1723528246745,-1869.86,0.00013698,2]
[334742207,1723528246755,-508.42683788,0.00013698,2]
[334742208,1723528246764,-157.74378377,0.00013698,2]
[334742209,1723528246774,-500.0,0.00013698,2]
[334742210,1723528246783,-926.74,0.00013698,2]
[334742211,1723528246792,-500.0,0.00013698,2]
[334742212,1723528246801,-500.0,0.00013698,2]
[334742213,1723528246810,-1000.64,0.00013698,2]
[334742214,1723528246819,-505.3329705,0.00013698,2]
[334742215,1723528246829,-151.0,0.00013698,2]
[334742216,1723528246838,-152.972169,0.00013698,2]
[334742217,1723528246848,-507.23024464,0.00013698,2]
[334742218,1723528246857,-604.28,0.00013698,2]
[334742219,1723528246867,-1727.88,0.00013698,2]
[334742220,1723528246876,-1280.01,0.00013698,2]
[334742221,1723528246885,-500.0,0.00013698,2]
[334742222,1723528246895,-502.07385119,0.00013698,2]
[334742223,1723528246904,-508.09704504,0.00013698,2]
[334742224,1723528246914,-500.0,0.00013698,2]
[334742225,1723528246924,-1180.87,0.00013698,2]
[334742226,1723528246933,-500.0,0.00013698,2]
[334742227,1723528246942,-771.71,0.00013698,2]
[334742228,1723528246951,-1364.07,0.00013698,2]
[334742229,1723528246960,-500.0,0.00013698,2]
[334742230,1723528246970,-502.47268155,0.00013698,2]
[334742231,1723528246979,-508.91417631,0.00013698,2]
[334742232,1723528246989,-507.52193362,0.00013698,2]
[334742233,1723528247001,-508.09120015,0.00013698,2]
[334742234,1723528247012,-273.645842,0.00013698,2]
[334742235,1723528247022,-273.645842,0.00013698,2]
[334742236,1723528247035,-500.85794831,0.00013698,2]
[334742237,1723528247045,-500.0,0.00013698,2]
[334742238,1723528247056,-273.645842,0.00013698,2]
[334742239,1723528247065,-273.645842,0.00013698,2]
[334742240,1723528247075,-273.645842,0.00013698,2]
[334742241,1723528247084,-273.645842,0.00013698,2]
[334742242,1723528247093,-500.0,0.00013698,2]
[334742243,1723528247105,-273.645842,0.00013698,2]
[334742244,1723528247121,-273.645842,0.00013698,2]
[334742245,1723528247131,-273.645842,0.00013698,2]
[334742246,1723528247141,-273.645842,0.00013698,2]
[334742247,1723528247153,-273.645842,0.00013698,2]
[334742248,1723528247163,-273.645842,0.00013698,2]
[334742249,1723528247172,-273.645842,0.00013698,2]
[334742250,1723528247182,-510.0778045,0.00013698,2]
[334742251,1723528247191,-273.645842,0.00013698,2]
[334742252,1723528247202,-273.645842,0.00013698,2]
[334742253,1723528247213,-273.645842,0.00013698,2]
[334742254,1723528247224,-3788.04,0.00013698,2]
[334742255,1723528247234,-273.645842,0.00013698,2]
[334742256,1723528247245,-273.645835,0.00013698,2]
[334742257,1723528247256,-1116.51,0.00013698,2]
[334742258,1723528247265,-500.0,0.00013698,2]
[334742259,1723528247274,-502.28690449,0.00013698,2]
[334742260,1723528247283,-500.0,0.00013698,2]
[334742261,1723528247292,-500.0,0.00013698,2]
[334742262,1723528247301,-270.742307,0.00013698,2]
[334742263,1723528247310,-500.0,0.00013698,2]
[334742264,1723528247319,-600.77,0.00013698,2]
[334742265,1723528247330,-500.0,0.00013698,2]
[334742266,1723528247339,-500.0,0.00013698,2]
[334742267,1723528247350,-500.0,0.00013698,2]
[334742268,1723528247360,-240.64551426,0.00013698,2]
[334742269,1723528247369,-500.0,0.00013698,2]
[334742270,1723528247379,-507.72251785,0.00013698,2]
[334742271,1723528247388,-509.39277566,0.00013698,2]
[334742272,1723528247397,-800.87,0.00013698,2]
[334742273,1723528247407,-500.0,0.00013698,2]
[334742274,1723528247416,-151.0,0.00013698,2]
[334742275,1723528247427,-500.0,0.00013698,2]
[334742276,1723528247442,-155.233075,0.00013698,2]
[334742277,1723528247453,-500.0,0.00013698,2]
[334742278,1723528247463,-500.0,0.00013698,2]
[334742279,1723528247474,-500.0,0.00013698,2]
[334742280,1723528247484,-500.0,0.00013698,2]
[334742281,1723528247494,-224.96456749,0.00013698,2]
[334742282,1723528247504,-500.0,0.00013698,2]
[334742283,1723528247515,-500.0,0.00013698,2]
[334742284,1723528247525,-506.348355,0.00013698,2]
[334742285,1723528247534,-500.0,0.00013698,2]
[334742286,1723528247544,-500.0,0.00013698,2]
[334742287,1723528247554,-2565.68,0.00013698,2]
[334742288,1723528247564,-500.0,0.00013698,2]
[334742289,1723528247573,-509.30063614,0.00013698,2]
[334742290,1723528247583,-313.055283,0.00013698,2]
[334742291,1723528247593,-313.055283,0.00013698,2]
[334742292,1723528247602,-500.0,0.00013698,2]
[334742293,1723528247611,-313.055283,0.00013698,2]
[334742294,1723528247622,-313.055283,0.00013698,2]
[334742295,1723528247631,-500.0,0.00013698,2]
[334742296,1723528247640,-313.055283,0.00013698,2]
[334742297,1723528247650,-313.055283,0.00013698,2]
[334742298,1723528247659,-313.055283,0.00013698,2]
[334742299,1723528247669,-313.055283,0.00013698,2]
[334742300,1723528247678,-500.0,0.00013698,2]
[334742301,1723528247688,-500.0,0.00013698,2]
[334742302,1723528247698,-313.055283,0.00013698,2]
[334742303,1723528247707,-500.0,0.00013698,2]
[334742304,1723528247716,-313.055283,0.00013698,2]
[334742305,1723528247726,-313.055283,0.00013698,2]
[334742306,1723528247736,-313.055283,0.00013698,2]
[334742307,1723528247746,-1364.68,0.00013698,2]
[334742308,1723528247755,-500.0,0.00013698,2]
[334742309,1723528247765,-313.055283,0.00013698,2]
[334742310,1723528247774,-500.0,0.00013698,2]
[334742311,1723528247783,-500.0,0.00013698,2]
[334742312,1723528247792,-313.055283,0.00013698,2]
[334742313,1723528247802,-504.90662939,0.00013698,2]
[334742314,1723528247811,-313.055283,0.00013698,2]
[334742315,1723528247821,-313.055275,0.00013698,2]
[334742316,1723528247831,-505.81458611,0.00013698,2]
[334742317,1723528247841,-1616.3,0.00013698,2]
[334742318,1723528247851,-500.0,0.00013698,2]
[334742319,1723528247860,-503.09696335,0.00013698,2]
[334742320,1723528247869,-508.62666402,0.00013698,2]
[334742321,1723528247879,-1295.46,0.00013698,2]
[334742322,1723528247888,-1371.68,0.00013698,2]
[334742323,1723528247897,-500.0,0.00013698,2]
[334742324,1723528247907,-501.73655311,0.00013698,2]
[334742325,1723528247916,-500.0,0.00013698,2]
[334742326,1723528247925,-842.94,0.00013698,2]
[334742327,1723528247934,-500.0,0.00013698,2]
[334742328,1723528247943,-502.39977827,0.00013698,2]
[334742329,1723528247952,-4028.71,0.00013698,2]
[334742330,1723528247961,-4028.71,0.00013698,2]
[334742331,1723528247970,-4028.71,0.00013698,2]
[334742332,1723528247980,-4028.71,0.00013698,2]
[334742333,1723528247990,-4028.71,0.00013698,2]
[334742334,1723528248001,-522.86595952,0.00013698,2]
[334742335,1723528248010,-4028.71,0.00013698,2]
[334742336,1723528248020,-4028.71,0.00013698,2]
[334742337,1723528248030,-235.05888984,0.00013698,2]
[334742338,1723528248040,-4028.71,0.00013698,2]
[334742339,1723528248049,-4028.71,0.00013698,2]
[334742340,1723528248058,-4028.71,0.00013698,2]
[334742341,1723528248067,-4028.71,0.00013698,2]
[334742342,1723528248077,-4028.71,0.00013698,2]
[334742343,1723528248086,-4028.71,0.00013698,2]
[334742344,1723528248095,-4028.71,0.00013698,2]
[334742345,1723528248108,-4028.71,0.00013698,2]
[334742346,1723528248117,-500.0,0.00013698,2]
[334742347,1723528248127,-4028.71,0.00013698,2]
[334742348,1723528248136,-4028.71,0.00013698,2]
[334742349,1723528248145,-4028.71,0.00013698,2]
[334742350,1723528248155,-4028.71,0.00013698,2]
[334742351,1723528248164,-4028.71,0.00013698,2]
[334742352,1723528248173,-4028.71,0.00013698,2]
[334742353,1723528248184,-500.0,0.00013698,2]
[334742354,1723528248196,-4028.71,0.00013698,2]
[334742355,1723528248207,-586.24,0.00013698,2]
[334742356,1723528248218,-4028.71,0.00013698,2]
[334742357,1723528248228,-4028.91347327,0.00013698,2]
[334742358,1723528248237,-500.0,0.00013698,2]
[334742359,1723528248248,-500.0,0.00013698,2]
[334742360,1723528248257,-709.22,0.00013698,2]
[334742361,1723528248266,-635.04,0.00013698,2]
[334742362,1723528248276,-500.0,0.00013698,2]
[334742363,1723528248285,-500.0,0.00013698,2]
[334742364,1723528248294,-1649.1,0.00013698,2]
[334742365,1723528248304,-1442.41,0.00013698,2]
[334742366,1723528248314,-503.20227691,0.00013698,2]
[334742367,1723528248324,-500.0,0.00013698,2]
[334742368,1723528248334,-500.0,0.00013698,2]
[334742369,1723528248344,-669.84,0.00013698,2]
[334742370,1723528248353,-500.0,0.00013698,2]
[334742371,1723528248363,-500.0,0.00013698,2]
[334742372,1723528248374,-502.93227929,0.00013698,2]
[334742373,1723528248384,-785.634826,0.00013698,2]
[334742374,1723528248394,-785.634826,0.00013698,2]
[334742375,1723528248405,-785.634826,0.00013698,2]
[334742376,1723528248416,-785.634826,0.00013698,2]
[334742377,1723528248426,-785.634826,0.00013698,2]
[334742378,1723528248436,-500.0,0.00013698,2]
[334742379,1723528248445,-785.634826,0.00013698,2]
[334742380,1723528248454,-785.634826,0.00013698,2]
[334742381,1723528248464,-785.634826,0.00013698,2]
[334742382,1723528248473,-785.634826,0.00013698,2]
[334742383,1723528248483,-785.634826,0.00013698,2]
[334742384,1723528248492,-785.634826,0.00013698,2]
[334742385,1723528248502,-785.634826,0.00013698,2]
[334742386,1723528248512,-785.634826,0.00013698,2]
[334742387,1723528248521,-500.0,0.00013698,2]
[334742388,1723528248531,-1298.96,0.00013698,2]
[334742389,1723528248540,-785.634826,0.00013698,2]
[334742390,1723528248550,-785.634826,0.00013698,2]
[334742391,1723528248559,-785.634816,0.00013698,2]
[334742392,1723528248568,-630.11,0.00013698,2]
[334742393,1723528248577,-927.44,0.00013698,2]
[334742394,1723528248587,-5906.63,0.00013698,2]
[334742395,1723528248596,-500.0,0.00013698,2]
[334742396,1723528248605,-760.69,0.00013698,2]
[334742397,1723528248615,-509.21483951,0.00013698,2]
[334742398,1723528248624,-500.0,0.00013698,2]
[334742399,1723528248633,-510.22858019,0.00013698,2]
[334742400,1723528248643,-500.0,0.00013698,2]
[334742401,1723528248652,-500.0,0.00013698,2]
[334742402,1723528248661,-500.0,0.00013698,2]
[334742403,1723528248671,-500.0,0.00013698,2]
[334742404,1723528248680,-500.0,0.00013698,2]
[334742405,1723528248689,-509.67446597,0.00013698,2]
[334742406,1723528248699,-508.67,0.00013698,2]
[334742407,1723528248709,-500.0,0.00013698,2]
[334742408,1723528248719,-2025.26,0.00013698,2]
[334742409,1723528248728,-1085.22,0.00013698,2]
[334742410,1723528248737,-806.94,0.00013698,2]
[334742411,1723528248747,-515.6222114,0.00013698,2]
[334742412,1723528248756,-611.49648298,0.00013698,2]
[334742413,1723528248765,-2737.51,0.00013698,2]
[334742414,1723528248775,-510.88917413,0.00013698,2]
[334742415,1723528248784,-501.3757287,0.00013698,2]
[334742416,1723528248793,-500.0,0.00013698,2]
[334742417,1723528248802,-500.0,0.00013698,2]
[334742418,1723528248812,-500.0,0.00013698,2]
[334742419,1723528248821,-500.0,0.00013698,2]
[334742420,1723528248831,-509.83521635,0.00013698,2]
[334742421,1723528248840,-878.26322,0.00013698,2]
[334742422,1723528248849,-510.89484619,0.00013698,2]
[334742423,1723528248859,-878.26322,0.00013698,2]
[334742424,1723528248868,-878.26322,0.00013698,2]
[334742425,1723528248877,-878.26322,0.00013698,2]
[334742426,1723528248886,-878.26322,0.00013698,2]
[334742427,1723528248897,-878.26322,0.00013698,2]
[334742428,1723528248906,-878.26322,0.00013698,2]
[334742429,1723528248916,-878.26322,0.00013698,2]
[334742430,1723528248925,-500.0,0.00013698,2]
[334742431,1723528248935,-596.13,0.00013698,2]
[334742432,1723528248944,-878.26322,0.00013698,2]
[334742433,1723528248954,-500.0,0.00013698,2]
[334742434,1723528248964,-878.26322,0.00013698,2]
[334742435,1723528248975,-6282.86,0.00013698,2]
[334742436,1723528248984,-818.75,0.00013698,2]